fUSD/lending_fUSD_20251112
["ID","MTS","AMOUNT","RATE_DAILY","PERIOD"]
[393704428,1762933858759,-517.38,0.00039178,20]
[393704429,1762933858768,-517.38,0.00039178,20]
[393704430,1762933858777,-507.48645731,0.00039178,20]
[393704431,1762933858787,-500.0,0.00039178,20]
[393704432,1762933858796,-564.40023593,0.00039178,20]
[393704433,1762933858805,-620.8,0.00039178,20]
[393704434,1762933858814,-620.8,0.00039178,20]
[393704435,1762933858823,-500.0,0.00039178,20]
[393704436,1762933858834,-620.8,0.00039178,20]
[393704437,1762933858843,-500.0,0.00039178,20]
[393704438,1762933858852,-504.69634224,0.00039178,20]
[393704439,1762933858862,-620.8,0.00039178,20]
[393704440,1762933858871,-509.67054633,0.00039178,20]
[393704441,1762933858880,-620.8,0.00039178,20]
[393704442,1762933858891,-500.0,0.00039178,20]
[393704443,1762933858900,-500.0,0.00039178,20]
[393704444,1762933858910,-500.0,0.00039178,20]
[393704445,1762933858919,-500.0,0.00039178,20]
[393704446,1762933858928,-500.0,0.00039178,20]
[393704447,1762933858937,-500.0,0.00039178,20]
[393704448,1762933858947,-560.36014325,0.00039178,20]
[393704449,1762933858956,-680.01,0.00039178,20]
[393704450,1762933858966,-680.01,0.00039178,20]
[393704451,1762933858976,-680.01,0.00039178,20]
[393704452,1762933858985,-680.01,0.00039178,20]
[393704453,1762933858995,-680.01,0.00039178,20]
[393704454,1762933859004,-500.0,0.00039178,20]
[393704455,1762933859014,-500.0,0.00039178,20]
[393704456,1762933859025,-338.46843958,0.00039178,20]
[393704457,1762933859035,-500.0,0.00039178,20]
[393704458,1762933859044,-500.0,0.00039178,20]
[393704459,1762933859054,-500.0,0.00039178,20]
[393704460,1762933859064,-500.0,0.00039178,20]
[393704461,1762933859074,-500.0,0.00039178,20]
[393704462,1762933859084,-500.0,0.00039178,20]
[393704463,1762933859094,-500.0,0.00039178,20]
[393704464,1762933859103,-500.0,0.00039178,20]
[393704465,1762933859113,-500.0,0.00039178,20]
[393704466,1762933859123,-500.0,0.00039178,20]
[393704467,1762933859132,-590.2800355,0.00039178,20]
[393704468,1762933859142,-500.0,0.00039178,7]
[393704469,1762933859151,-500.0,0.00039178,7]
[393704470,1762933859160,-500.0,0.00039178,7]
[393704471,1762933859170,-500.0,0.00039178,7]
[393704472,1762933859179,-500.0,0.00039178,20]
[393704473,1762933859193,-500.0,0.00039178,7]
[393704474,1762933859202,-500.0,0.00039178,20]
[393704475,1762933859212,-500.0,0.00039178,20]
[393704476,1762933859221,-500.0,0.00039178,20]
[393704477,1762933859231,-500.0,0.00039178,20]
[393704478,1762933859240,-500.0,0.00039178,20]
[393704479,1762933859249,-500.0,0.00039178,20]
[393704480,1762933859259,-500.0,0.00039178,20]
[393704481,1762933859268,-500.0,0.00039178,20]
[393704482,1762933859278,-500.0,0.00039178,20]
[393704483,1762933859287,-1501.25,0.00039178,2]
[393704484,1762933859296,-500.0,0.00039178,20]
[393704485,1762933859306,-500.0,0.00039178,20]
[393704486,1762933859316,-500.0,0.00039178,20]
[393704487,1762933859326,-1501.25,0.00039178,2]
[393704488,1762933859335,-500.0,0.00039178,20]
[393704489,1762933859345,-500.0,0.00039178,20]
[393704490,1762933859354,-1501.25,0.00039178,2]
[393704491,1762933859363,-500.0,0.00039178,20]
[393704492,1762933859377,-500.0,0.00039178,20]
[393704493,1762933859387,-1501.25,0.00039178,2]
[393704494,1762933859396,-500.0,0.00039178,20]
[393704495,1762933859405,-1501.25,0.00039178,2]
[393704496,1762933859415,-500.0,0.00039178,20]
[393704497,1762933859424,-500.0,0.00039178,20]
[393704498,1762933859434,-500.0,0.00039178,20]
[393704499,1762933859444,-500.0,0.00039178,20]
[393704500,1762933859454,-500.0,0.00039178,20]
[393704501,1762933859463,-500.0,0.00039178,20]
[393704502,1762933859472,-262.57326994,0.00039178,20]
[393704503,1762933859482,-500.0,0.00039178,20]
[393704504,1762933859491,-500.0,0.00039178,20]
[393704505,1762933859500,-500.0,0.00039178,20]
[393704506,1762933859509,-527.93316059,0.00039178,20]
[393704507,1762933859518,-348.78017763,0.00039178,20]
[393704508,1762933859527,-313.7100691,0.00039178,20]
[393704509,1762933859537,-500.0,0.00039178,20]
[393704510,1762933859546,-662.77,0.00039178,20]
[393704511,1762933859556,-662.77,0.00039178,20]
[393704512,1762933859565,-522.73036842,0.00039178,20]
[393704513,1762933859574,-662.77,0.00039178,20]
[393704514,1762933859584,-662.77,0.00039178,20]
[393704515,1762933859593,-662.77,0.00039178,20]
[393704516,1762933859603,-972.99,0.00039178,20]
[393704517,1762933859612,-500.0,0.00039178,20]
[393704518,1762933859622,-500.0,0.00039178,2]
[393704519,1762933859631,-972.99,0.00039178,20]
[393704520,1762933859641,-500.0,0.00039178,20]
[393704521,1762933859651,-500.0,0.00039178,20]
[393704522,1762933859660,-500.0,0.00039178,2]
[393704523,1762933859669,-972.99,0.00039178,20]
[393704524,1762933859678,-500.0,0.00039178,20]
[393704525,1762933859687,-277.41979462,0.00039178,20]
[393704526,1762933859696,-500.0,0.00039178,20]
[393704527,1762933859706,-972.99,0.00039178,20]
[393704528,1762933859715,-500.0,0.00039178,2]
[393704529,1762933859725,-500.0,0.00039178,20]
[393704530,1762933859735,-500.0,0.00039178,20]
[393704531,1762933859744,-500.0,0.00039178,2]
[393704532,1762933859753,-972.99,0.00039178,20]
[393704533,1762933859762,-500.0,0.00039178,20]
[393704534,1762933859771,-500.0,0.00039178,20]
[393704535,1762933859781,-500.0,0.00039178,20]
[393704536,1762933859790,-500.0,0.00039178,20]
[393704537,1762933859799,-812.54,0.00039178,20]
[393704538,1762933859808,-500.0,0.00039178,20]
[393704539,1762933859818,-500.0,0.00039178,20]
[393704540,1762933859827,-812.54,0.00039178,20]
[393704541,1762933859837,-500.0,0.00039178,20]
[393704542,1762933859847,-812.54,0.00039178,20]
[393704543,1762933859856,-500.0,0.00039178,20]
[393704544,1762933859865,-812.54,0.00039178,20]
[393704545,1762933859875,-812.54,0.00039178,20]
[393704546,1762933859883,-500.0,0.00039178,20]
[393704547,1762933859893,-500.0,0.00039178,20]
[393704548,1762933859903,-500.0,0.00039178,20]
[393704549,1762933859912,-500.0,0.00039178,20]
[393704550,1762933859921,-500.0,0.00039178,20]
[393704551,1762933859930,-500.0,0.00039178,20]
[393704552,1762933859939,-500.0,0.00039178,20]
[393704553,1762933859949,-500.0,0.00039178,20]
[393704554,1762933859959,-500.0,0.00039178,20]
[393704555,1762933859968,-500.0,0.00039178,20]
[393704556,1762933859979,-500.0,0.00039178,20]
[393704557,1762933859988,-500.0,0.00039178,20]
[393704558,1762933859998,-500.0,0.00039178,20]
[393704559,1762933860007,-500.0,0.00039178,20]
[393704560,1762933860017,-520.58491556,0.00039178,20]
[393704561,1762933860026,-500.0,0.00039178,20]
[393704562,1762933860036,-500.0,0.00039178,20]
[393704563,1762933860045,-500.0,0.00039178,20]
[393704564,1762933860055,-500.0,0.00039178,20]
[393704565,1762933860065,-549.76891176,0.00039178,20]
[393704566,1762933860074,-500.0,0.00039178,20]
[393704567,1762933860084,-500.0,0.00039178,20]
[393704568,1762933860093,-500.0,0.00039178,20]
[393704569,1762933860103,-500.0,0.00039178,20]
[393704570,1762933860112,-500.0,0.00039178,20]
[393704571,1762933860121,-500.0,0.00039178,20]
[393704572,1762933860132,-500.0,0.00039178,20]
[393704573,1762933860141,-500.0,0.00039178,20]
[393704574,1762933860151,-500.0,0.00039178,20]
[393704575,1762933860160,-500.0,0.00039178,20]
[393704576,1762933860169,-500.0,0.00039178,20]
[393704577,1762933860179,-500.0,0.00039178,20]
[393704578,1762933860188,-10.80378649,0.00039178,20]
[393704579,1762933861506,-151.0,0.00039158,30]
[393704580,1762933861516,-151.0,0.00039158,120]
[393704581,1762933861526,-489.19621351,0.00039178,20]
[393704582,1762933861535,-500.0,0.00039178,20]
[393704583,1762933861545,-500.0,0.00039178,20]
[393704584,1762933861554,-500.0,0.00039178,20]
[393704585,1762933861563,-500.0,0.00039178,20]
[393704586,1762933861572,-112.33430953,0.00039178,20]
[393704694,1762935031837,-1000.0,0.00030137,120]
[393704697,1762935031846,-1000.0,0.00030137,120]
[393704698,1762935031856,-1000.0,0.00030137,120]
[393704699,1762935031865,-1000.0,0.00030137,120]
[393704700,1762935031875,-1000.0,0.00030137,120]
[393704701,1762935031884,-1000.0,0.00030137,120]
[393704702,1762935031894,-1000.0,0.00030137,120]
[393704703,1762935031904,-1000.0,0.00030137,120]
[393704704,1762935031915,-1000.0,0.00030137,120]
[393704705,1762935031925,-1000.0,0.00030137,120]
[393704706,1762935031935,-780.48008468,0.00030411,120]
[393704707,1762935031947,-1219.51991532,0.00030411,120]
[393704708,1762935031956,-5516.0,0.000305,3]
[393704709,1762935031966,-2000.0,0.00030685,120]
[393704710,1762935031975,-2000.0,0.00030685,120]
[393704711,1762935031984,-2000.0,0.00030959,120]
[393704712,1762935031993,-2000.0,0.00031233,120]
[393704713,1762935032002,-2000.0,0.00031233,120]
[393704714,1762935032012,-5516.0,0.000313,5]
[393704715,1762935032021,-400.0,0.00031499,3]
[393704716,1762935032030,-400.0,0.00031499,2]
[393704717,1762935032040,-1600.0,0.00031499,3]
[393704718,1762935032049,-27.93877492,0.00031507,120]
[393704719,1762935032062,-1972.06122508,0.00031507,120]
[393704720,1762935032072,-2000.0,0.00031781,120]
[393704721,1762935032081,-2000.0,0.00031781,120]
[393704722,1762935032090,-174.38893912,0.000319,2]
[393704723,1762935032100,-189.68694861,0.00032,120]
[393704724,1762935032109,-160.62733868,0.00032,120]
[393704725,1762935032119,-2000.0,0.00032055,120]
[393704726,1762935032128,-2000.0,0.00032329,120]
[393704727,1762935032138,-2000.0,0.00032329,120]
[393704728,1762935032148,-2000.0,0.00032603,120]
[393704729,1762935032157,-2000.0,0.00032877,120]
[393704730,1762935032167,-2000.0,0.00032877,120]
[393704731,1762935032176,-189.68694861,0.00033,120]
[393704732,1762935032186,-2000.0,0.00033425,120]
[393704733,1762935032195,-2000.0,0.00033425,120]
[393704734,1762935032205,-152.0,0.00033776,3]
[393704735,1762935032214,-1406.25,0.00033794,2]
[393704736,1762935032223,-189.68694861,0.000339,120]
[393704737,1762935032232,-2000.0,0.00033973,120]
[393704738,1762935032242,-2000.0,0.00033973,120]
[393704739,1762935032251,-400.0,0.000342,2]
[393704740,1762935032261,-155.679,0.00034318,30]
[393704741,1762935032271,-612.1605037,0.00034521,120]
[393704742,1762935032283,-1387.8394963,0.00034521,120]
[393704743,1762935032292,-2000.0,0.00034521,120]
[393704744,1762935032302,-1000.0,0.00034521,120]
[393704745,1762935032311,-206.83138341,0.00034534,120]
[393704746,1762935032321,-152.0,0.00034745,4]
[393704747,1762935032331,-329.65,0.00034745,10]
[393704748,1762935032341,-9204.41,0.00034745,15]
[393704749,1762935032350,-1000.0,0.00034795,120]
[393704750,1762935032359,-500.0,0.00034929,2]
[393704751,1762935032369,-200.0,0.00034969,2]
[393704752,1762935032378,-158.98,0.00035051,2]
[393704753,1762935032388,-2000.0,0.00035068,120]
[393704754,1762935032397,-2000.0,0.00035068,120]
[393704755,1762935032407,-1000.0,0.00035068,120]
[393704756,1762935032416,-5000.0,0.00035099,2]
[393704757,1762935032426,-1000.0,0.00035309,2]
[393704758,1762935032435,-300.28912029,0.00035309,2]
[393704759,1762935032447,-272.41087971,0.00035309,2]
[393704760,1762935032456,-150.99,0.00035309,2]
[393704761,1762935032465,-1000.0,0.00035342,120]
[393704762,1762935032475,-12565.4543459,0.00035511,2]
[393704763,1762935032484,-630.818,0.00035511,42]
[393704764,1762935032494,-1024.78090427,0.00035512,2]
[393704765,1762935032520,-5045.26115064,0.00035512,2]
[393704766,1762935032531,-1005.62220006,0.00035512,2]
[393704769,1762935032542,-37720.37642182,0.00035512,2]
[393704772,1762935032571,-4423.2,0.00035512,2]
[393704785,1762935037912,-2473.65091241,0.00035512,2]
[393704787,1762935038251,-586.9117412,0.00035512,2]
[393704789,1762935038263,-252.251498,0.00035512,2]
[393704791,1762935038275,-2422.1651716,0.00035512,2]
[393704793,1762935038284,-174.38893911,0.00035563,2]
[393704795,1762935038294,-549.49616654,0.00035616,120]
[393704932,1762935040120,-1450.50383346,0.00035616,120]
[393704933,1762935040130,-2000.0,0.00035616,120]
[393704934,1762935040140,-1000.0,0.00035616,120]
[393704935,1762935040150,-30.19426846,0.00035663,38]
[393704936,1762935040172,-429.43573154,0.00035663,38]
[393704937,1762935040181,-632.66426858,0.00035696,2]
[393704938,1762935040230,-849.47573142,0.00035696,2]
[393704939,1762935040240,-152.0,0.00035715,5]
[393704940,1762935040250,-156.47,0.00035868,120]
[393704943,1762935040430,-1000.0,0.0003589,120]
[393704944,1762935040441,-165.0,0.00035965,120]
[393704945,1762935040451,-500.0,0.00036121,30]
[393704947,1762935040460,-500.0,0.00036159,30]
[393704948,1762935040470,-1000.0,0.00036164,120]
[393704949,1762935040479,-820.03800932,0.0003636,2]
[393704950,1762935040488,-1000.0,0.00036438,120]
[393704951,1762935040498,-152.0,0.00036684,6]
[393704952,1762935040507,-478.56668374,0.00036693,2]
[393704953,1762935040516,-150.0,0.00036699,2]
[393704954,1762935040525,-5581.53191381,0.00036699,2]
[393704955,1762935040534,-1000.0,0.00036712,120]
[393704956,1762935040543,-1783.12973088,0.0003672,2]
[393704957,1762935040553,-709.95040525,0.00036736,30]
[393704958,1762935040564,-151.0,0.00036777,2]
[393704959,1762935040573,-732.14310005,0.00036789,3]
[393704960,1762935040582,-500.0,0.00036798,15]
[393704961,1762935040592,-500.0,0.00036798,15]
[393704962,1762935040601,-634.31103255,0.00036798,15]
[393704963,1762935040611,-150.0,0.00036798,15]
[393704964,1762935040621,-249.95,0.00036798,7]
[393704965,1762935040632,-420000.0,0.00036799,2]
[393704966,1762935040642,-178.36569229,0.00036799,2]
[393704967,1762935040651,-2523.0,0.00036832,2]
[393704968,1762935040667,-5581.53191377,0.00036967,2]
[393704969,1762935040676,-1000.0,0.00036986,120]
[393704970,1762935040686,-500.0,0.00037138,30]
[393704971,1762935040696,-500.0,0.00037147,30]
[393704972,1762935040705,-500.0,0.00037212,30]
[393704973,1762935040715,-5581.53191377,0.00037234,2]
[393704974,1762935040724,-1000.0,0.0003726,120]
[393704975,1762935040733,-249.95,0.00037346,8]
[393704976,1762935040743,-168.0,0.00037501,2]
[393704977,1762935040755,-5581.53191377,0.00037502,2]
[393704978,1762935040764,-1000.0,0.00037534,120]
[393704979,1762935040773,-158.98,0.00037554,2]
[393704980,1762935040783,-152.0,0.00037653,7]
[393704981,1762935040792,-5581.53191377,0.0003777,2]
[393704982,1762935040802,-1000.0,0.00037808,120]
[393704983,1762935040811,-249.95,0.00037894,9]
[393704984,1762935040822,-500.0,0.00037986,30]
[393704985,1762935040832,-437.0,0.00038,30]
[393704986,1762935040843,-743.94975691,0.00038,10]
[393704987,1762935040852,-5581.53191377,0.00038037,2]
[393704988,1762935040862,-1000.0,0.00038082,120]
[393704989,1762935040871,-1300.0,0.00038094,7]
[393704990,1762935040881,-500.0,0.00038269,30]
[393704991,1762935040891,-5581.53191377,0.00038305,2]
[393704992,1762935040901,-153.0,0.00038344,120]
[393704993,1762935040910,-153.0,0.00038344,120]
[393704994,1762935040919,-153.0,0.00038344,120]
[393704995,1762935040929,-153.0,0.00038344,120]
[393704996,1762935040938,-1000.0,0.00038356,120]
[393704997,1762935040947,-559.52,0.00038356,2]
[393704998,1762935040956,-437.75,0.00038356,2]
[393704999,1762935040965,-434.79,0.00038356,2]
[393705000,1762935040975,-1239.4,0.00038356,2]
[393705001,1762935040988,-1207.25,0.00038356,2]
[393705002,1762935040998,-549.74,0.00038356,2]
[393705003,1762935041007,-416.24,0.00038356,2]
[393705004,1762935041017,-549.74,0.00038356,2]
[393705005,1762935041026,-1207.25,0.00038356,2]
[393705006,1762935041035,-416.24,0.00038356,2]
[393705007,1762935041045,-1207.25,0.00038356,2]
[393705008,1762935041054,-547.31,0.00038356,2]
[393705009,1762935041063,-1207.25,0.00038356,2]
[393705010,1762935041073,-691.02,0.00038356,2]
[393705011,1762935041082,-500.0,0.00038368,7]
[393705012,1762935041091,-900.0,0.00038368,7]
[393705013,1762935041101,-1178.0,0.000384,2]
[393705014,1762935041110,-249.95,0.00038442,10]
[393705015,1762935041119,-284.7786349,0.00038506,7]
[393705016,1762935041128,-152.0,0.00038506,7]
[393705017,1762935041138,-152.0,0.00038506,7]
[393705018,1762935041148,-152.0,0.00038506,7]
[393705019,1762935041157,-152.0,0.00038506,7]
[393705020,1762935041167,-827.0,0.00038506,7]
[393705021,1762935041176,-152.0,0.00038506,7]
[393705022,1762935041186,-152.0,0.00038506,7]
[393705023,1762935041196,-827.0,0.00038506,7]
[393705024,1762935041205,-152.0,0.00038506,7]
[393705025,1762935041215,-151.0,0.00038506,7]
[393705026,1762935041225,-827.0,0.00038506,7]
[393705027,1762935041234,-290.0009825,0.00038506,7]
[393705028,1762935041244,-827.0,0.00038506,7]
[393705029,1762935041253,-827.0,0.00038506,7]
[393705030,1762935041263,-151.0,0.00038506,7]
[393705031,1762935041272,-827.0,0.00038506,7]
[393705032,1762935041282,-151.0,0.00038506,7]
[393705033,1762935041291,-888.12140927,0.00038506,7]
[393705034,1762935041300,-151.0,0.00038506,7]
[393705035,1762935041311,-151.0,0.00038506,7]
[393705036,1762935041322,-151.0,0.00038506,7]
[393705037,1762935041332,-151.0,0.00038506,7]
[393705038,1762935041341,-151.0,0.00038506,7]
[393705039,1762935041351,-151.0,0.00038506,7]
[393705040,1762935041361,-151.0,0.00038506,7]
[393705041,1762935041371,-151.0,0.00038506,7]
[393705042,1762935041380,-151.0,0.00038506,7]
[393705043,1762935041390,-151.0,0.00038506,7]
[393705044,1762935041400,-151.0,0.00038506,7]
[393705045,1762935041410,-151.0,0.00038506,7]
[393705046,1762935041420,-151.0,0.00038506,7]
[393705047,1762935041429,-151.0,0.00038506,7]
[393705048,1762935041439,-151.0,0.00038506,7]
[393705049,1762935041449,-151.0,0.00038506,7]
[393705050,1762935041459,-151.0,0.00038506,7]
[393705051,1762935041469,-151.0,0.00038506,7]
[393705052,1762935041479,-151.0,0.00038506,7]
[393705053,1762935041488,-151.0,0.00038506,7]
[393705054,1762935041498,-151.0,0.00038506,7]
[393705055,1762935041507,-151.0,0.00038506,7]
[393705056,1762935041517,-151.0,0.00038506,7]
[393705057,1762935041525,-151.0,0.00038506,7]
[393705058,1762935041535,-151.0,0.00038506,7]
[393705059,1762935041544,-151.0,0.00038506,7]
[393705060,1762935041554,-151.0,0.00038506,7]
[393705061,1762935041563,-151.0,0.00038506,7]
[393705062,1762935041572,-151.0,0.00038506,7]
[393705063,1762935041582,-151.0,0.00038506,7]
[393705064,1762935041591,-151.0,0.00038506,7]
[393705065,1762935041600,-151.0,0.00038506,7]
[393705066,1762935041610,-151.0,0.00038506,7]
[393705067,1762935041619,-151.0,0.00038506,7]
[393705068,1762935041629,-151.0,0.00038506,7]
[393705069,1762935041640,-151.0,0.00038506,7]
[393705070,1762935041649,-151.0,0.00038506,7]
[393705071,1762935041658,-151.0,0.00038506,7]
[393705072,1762935041668,-151.0,0.00038506,7]
[393705073,1762935041677,-151.0,0.00038506,7]
[393705074,1762935041688,-194.6588664,0.00038506,7]
[393705075,1762935041700,-166.0,0.00038506,7]
[393705076,1762935041709,-166.0,0.00038506,7]
[393705077,1762935041719,-166.0,0.00038506,7]
[393705078,1762935041728,-166.0,0.00038506,7]
[393705079,1762935041738,-166.0,0.00038506,7]
[393705080,1762935041751,-166.0,0.00038506,7]
[393705081,1762935041760,-253.61607805,0.00038506,7]
[393705082,1762935041769,-500.0,0.00038542,30]
[393705083,1762935041779,-5581.53191377,0.00038573,2]
[393705084,1762935041793,-152.0,0.00038622,8]
[393705085,1762935041808,-437.0,0.0003863,90]
[393705086,1762935041826,-4628.27,0.00038678,2]
[393705087,1762935041837,-857.11836138,0.00038695,30]
[393705088,1762935041851,-500.0,0.000387,120]
[393705089,1762935041865,-500.0,0.000387,120]
[393705090,1762935041878,-500.0,0.000387,120]
[393705091,1762935041891,-500.0,0.000387,120]
[393705092,1762935041906,-500.0,0.000387,120]
[393705093,1762935041919,-500.0,0.000387,120]
[393705094,1762935041931,-500.0,0.000387,120]
[393705095,1762935041941,-500.0,0.00038717,30]
[393705096,1762935041956,-1000.0,0.000388,7]
[393705097,1762935041969,-5581.53191377,0.0003884,2]
[393705098,1762935041982,-200.0,0.00038887,20]
[393705099,1762935041995,-770.00650967,0.00038907,30]
[393705100,1762935042008,-1300.0,0.00038916,7]
[393705101,1762935042022,-1000.0,0.00038919,7]
[393705102,1762935042035,-150.0,0.00038958,7]
[393705103,1762935042049,-219.45729136,0.00038959,7]
[393705104,1762935042062,-1000.0,0.00038978,7]
[393705105,1762935042074,-2661.2261608,0.0003898,3]
[393705106,1762935042087,-150.0,0.00038982,7]
[393705107,1762935042100,-249.95,0.0003899,11]
[393705108,1762935042113,-5322.4523216,0.0003899,3]
[393705109,1762935042127,-1000.0,0.00038995,7]
[393705110,1762935042138,-22114.38905034,0.00039,14]
[393705111,1762935042150,-1267.95637089,0.00039,4]
[393705112,1762935042163,-1172.13544,0.00039,120]
[393705113,1762935042173,-1000.0,0.00039,120]
[393705114,1762935042185,-1000.0,0.00039045,7]
[393705115,1762935042202,-2661.2261608,0.00039052,3]
[393705116,1762935042214,-5322.4523216,0.00039062,3]
[393705117,1762935042224,-150.0,0.00039069,2]
[393705118,1762935042235,-161.861,0.00039069,2]
[393705119,1762935042248,-169.383,0.00039069,2]
[393705120,1762935042262,-150.242,0.00039069,2]
[393705121,1762935042283,-3427.0,0.00039072,2]
[393705122,1762935042294,-577.236,0.00039072,2]
[393705123,1762935042305,-1317.0,0.00039072,2]
[393705124,1762935042317,-611.228,0.00039072,2]
[393705125,1762935042329,-821.0,0.00039072,2]
[393705126,1762935042340,-1597.0,0.00039072,2]
[393705127,1762935042352,-813.0,0.00039072,2]
[393705128,1762935042364,-1274.0,0.00039072,2]
[393705129,1762935042378,-1189.0,0.00039072,2]
[393705130,1762935042390,-4536.209,0.00039072,2]
[393705131,1762935042401,-2143.0,0.00039072,2]
[393705132,1762935042412,-560.0,0.00039072,2]
[393705133,1762935042424,-6514.987,0.00039072,2]
[393705134,1762935042436,-2498.0,0.00039078,5]
[393705135,1762935042448,-161.72481843,0.00039078,12]
[393705136,1762935042459,-162.62631696,0.00039078,2]
[393705137,1762935042473,-481.19607756,0.00039078,2]
[393705138,1762935042485,-150.0,0.000391,15]
[393705139,1762935042496,-164.48213506,0.00039102,2]
[393705140,1762935042508,-198.0,0.00039103,120]
[393705141,1762935042519,-154.00686309,0.00039103,120]
[393705142,1762935042531,-154.00686309,0.00039103,120]
[393705143,1762935042542,-181.63459051,0.00039103,120]
[393705144,1762935042553,-181.63,0.00039103,120]
[393705145,1762935042563,-169.52561781,0.00039103,120]
[393705146,1762935042575,-169.52561781,0.00039103,120]
[393705147,1762935042586,-169.52561781,0.00039103,120]
[393705148,1762935042597,-169.52561781,0.00039103,120]
[393705149,1762935042608,-190.08826373,0.00039103,120]
[393705150,1762935042620,-190.08826373,0.00039103,120]
[393705151,1762935042631,-190.08,0.00039103,120]
[393705152,1762935042643,-166.32723077,0.00039103,120]
[393705153,1762935042655,-166.32723077,0.00039103,120]
[393705154,1762935042666,-166.32723077,0.00039103,120]
[393705155,1762935042678,-166.32723077,0.00039103,120]
[393705157,1762935042689,-166.32723077,0.00039103,120]
[393705158,1762935042702,-166.32723077,0.00039103,120]
[393705159,1762935042713,-166.32723077,0.00039103,120]
[393705160,1762935042724,-5581.53191377,0.00039108,2]
[393705161,1762935042736,-277.9739007,0.00039121,60]
[393705162,1762935042749,-300.0,0.00039123,2]
[393705163,1762935042761,-2661.2261608,0.00039138,3]
[393705164,1762935042773,-2661.2261608,0.00039148,3]
[393705165,1762935042784,-5322.4523216,0.00039148,3]
[393705166,1762935042797,-3200.37904908,0.00039158,3]
[393705191,1762935046082,-4783.29943332,0.00039158,3]
[393705192,1762935046091,-15967.3569648,0.00039158,3]
[393705193,1762935046101,-328.07511599,0.00039159,2]
[393705194,1762935046115,-150.0,0.00039162,7]
[393705195,1762935046124,-1000.0,0.00039167,7]
[393705196,1762935046134,-15967.3569648,0.00039168,3]
[393705197,1762935046143,-151.0,0.00039168,120]
[393705198,1762935046153,-151.0,0.00039168,120]
[393705199,1762935046163,-151.0,0.00039168,120]
[393705200,1762935046172,-151.0,0.00039168,120]
[393705201,1762935046182,-151.0,0.00039168,30]
[393705202,1762935046191,-151.0,0.00039168,30]
[393705203,1762935046202,-151.0,0.00039168,120]
[393705204,1762935046211,-151.0,0.00039168,120]
[393705205,1762935046221,-39918.392412,0.00039168,3]
[393705206,1762935046230,-369.57582636,0.00039168,2]
[393705207,1762935046240,-310.67531562,0.00039171,7]
[393705208,1762935046249,-500.0,0.00039173,2]
[393705209,1762935046258,-999.0,0.00039177,120]
[393705210,1762935046268,-819.85346245,0.00039177,20]
[393705211,1762935046278,-151.0,0.00039177,20]
[393705212,1762935046287,-151.0,0.00039177,20]
[393705213,1762935046296,-151.0,0.00039177,20]
[393705214,1762935046305,-151.0,0.00039177,20]
[393705215,1762935046315,-151.0,0.00039177,20]
[393705216,1762935046324,-151.0,0.00039177,20]
[393705217,1762935046334,-151.0,0.00039177,20]
[393705218,1762935046343,-151.0,0.00039177,20]
[393705219,1762935046352,-151.0,0.00039177,20]
[393705220,1762935046361,-151.0,0.00039177,20]
[393705221,1762935046371,-151.0,0.00039177,20]